Cogmind - Beta 12 @@@ ROGUE MODE // 2023.03.04 @ 16:40:56 Player: Red Box Result: Destroyed by as-45335 with Assembled F-torch Performance ------------- Evolutions (0) 0 Regions Visited (2) 400 Robots Destroyed (24) 120 Value Destroyed (381) 381 Prototype IDs (2) 40 Alien Tech Used (0) 0 Bonus (0) 0 TOTAL SCORE: 941 Bonus ------- None Cogmind --------- Core Integrity 0/250 Matter 283/300 Energy 240/250 System Corruption 5% Temperature Cool (84) Movement Core (1450) Ox28 Location -10/Mines Parts ------- > --- POWER (1) -------- Ion Engine > --- PROPULSION (2) --- (None) > --- UTILITY (2) ------ Huge Storage Unit > --- WEAPON (2) ------- Medium Laser > --- INVENTORY (25) --- Ion Engine Light Treads Light Treads Compact Wheel Improved Terrain Scanner Medium Armor Plating Medium Armor Plating Medium Armor Plating Medium Armor Plating EM Pulse Gun EM Pulse Gun Medium Laser Beam Cannon Assault Rifle Assault Rifle Light Cannon Light Cannon Hammer Peak State ------------ > --- POWER ------------ Ion Engine > --- PROPULSION ------- Wheel Compact Wheel > --- UTILITY ---------- Huge Storage Unit Improved Terrain Scanner > --- WEAPON ----------- EM Pulse Gun EM Pulse Gun > --- INVENTORY -------- Ion Engine Light Treads Light Treads Compact Wheel Compact Wheel Heat Sink Medium Armor Plating Medium Armor Plating Medium Laser Medium Laser Medium Laser Beam Cannon Assault Rifle Assault Rifle Light Cannon Light Cannon Grenade Launcher Hammer [Rating: 11] Favorites ----------- Power Ion Engine Engine Ion Engine Propulsion Compact Wheel Treads Light Treads Leg Aluminum Leg Wheel Compact Wheel Utility Improved Terrain Scanner Device Improved Terrain Scanner Storage Huge Storage Unit Weapon EM Pulse Gun Energy Gun EM Pulse Gun Ballistic Gun Assault Rifle Launcher Grenade Launcher Build | -11 -10 -10 ------- Run | Jun Mat Min Slots Evolved . | . . . Power . | . . . Propulsion . | . . . Utility . | . . . Weapon . | . . . Parts Attached 29 | 9 17 3 Power 1 | 1 . . Engine 1 | 1 . . Core . | . . . Reactor . | . . . Propulsion 9 | 4 4 1 Treads 1 | . 1 . Leg 2 | 2 . . Wheel 6 | 2 3 1 Hover . | . . . Flight . | . . . Utility 6 | 2 4 . Device 2 | 1 1 . Storage 4 | 1 3 . Processor . | . . . Hackware . | . . . Protection . | . . . Artifact . | . . . Weapon 13 | 2 9 2 Energy Gun 8 | 2 5 1 Energy Cannon . | . . . Ballistic Gun 3 | . 3 . Ballistic Cannon . | . . . Launcher 2 | . 1 1 Special Weapon . | . . . Impact Weapon . | . . . Slashing Weapon . | . . . Piercing Weapon . | . . . Special Melee Weapon . | . . . Unidentified Prototypes . | . . . Parts Lost 11 | . 5 6 Power . | . . . Propulsion 6 | . 3 3 Utility 1 | . . 1 Weapon 4 | . 2 2 Highest Loss Streak 6 | . 2 6 To Critical Strikes . | . . . Average Slot Usage (%) 97 | . 97 71 Engine 14 | . 14 14 Wheel 26 | . 26 14 Device 13 | . 14 . Storage 13 | . 13 14 Energy Gun 21 | . 21 28 Ballistic Gun 5 | . 5 . Naked Turns . | . . . Heaviest Build 90 | 15 90 90 Greatest Support 32 | 20 32 26 Greatest Overweight (x) 5 | 2 5 3 Average Overweight (x) 1 | . 1 3 Largest Inventory Capacity 25 | 8 25 25 Average Capacity 16 | 7 16 25 Most Carried 20 | 8 20 20 Average Carried 11 | 5 11 19 Final Capacity 25 | 8 25 25 Final Carried 20 | 8 20 18 Class Distribution -------------------- 100% | Mutant Dominant Class ---------------- Mutant | -10/Materials Mutant | -10/Mines Resources | -11 -10 -10 ----------- Run | Jun Mat Min Matter Collected 524 | 290 231 3 Remotely . | . . . Salvage Created 751 | 148 582 21 Parts 51 | 11 40 . Haulers Intercepted . | . . . Recyclers Shooed . | . . . Parts Field Recycled . | . . . Retrieved Matter . | . . . Parts Self-Destructed . | . . . Prevented . | . . . Kills | -11 -10 -10 ------- Run | Jun Mat Min Combat Hostiles Destroyed 19 | . 15 4 Guns 11 | . 10 1 AOE 7 | . 4 3 Classes Destroyed 6 | 2 3 1 Tunneler 3 | 3 . . Recycler 3 | 1 2 . Watcher 3 | . 3 . Swarmer 9 | . 9 . Grunt 6 | . 6 . Assembled 4 | . . 4 Best Kill Streak 10 | 4 10 4 Combat Bots Only 8 | . 8 4 Max Kills in Single Turn 3 | 1 3 2 Gunslinging . | . . . Exploded 3 | . 3 2 Melee . | . . . Uniques/NPCs Destroyed . | . . . Combat | -11 -10 -10 -------- Run | Jun Mat Min Damage Taken 1006 | . 498 508 Core 255 | . 106 149 Absorbed by Shields . | . . . Regen/Repaired (Parts) 404 | . 404 . Core Remaining (%) 100 | 100 . . Volleys Fired 53 | 8 41 4 Largest 2 | 2 2 2 Hottest 100 | 80 80 100 Shots Fired 95 | 16 72 7 Gun 92 | 16 71 5 Cannon . | . . . Launcher 3 | . 1 2 Special . | . . . Kinetic 22 | . 22 . Thermal 5 | . . 5 Explosive 3 | . 1 2 Electromagnetic 65 | 16 49 . Robot Hit Streak 6 | 4 6 3 Robot Miss Streak 4 | 2 4 1 Penetration Max . | . . . Secondary Targets 1 | . 1 . Max Gunslinging Chain 1 | . 1 . Shots Hit Robots 50 | 9 38 3 Core Hits 40 | 5 20 15 Critical Kills . | . . . Critical Parts Destroyed . | . . . Critical Strikes 2 | . 1 1 Burn 1 | . . 1 Corrupt 1 | . 1 . Melee Attacks . | . . . Impact . | . . . Slashing . | . . . Piercing . | . . . Sneak Attacks . | . . . Combat Hostiles . | . . . Follow-up Attacks . | . . . Damage Inflicted 1384 | 129 866 389 Guns 736 | 129 570 37 Cannons . | . . . Explosions 648 | . 296 352 Melee . | . . . Ramming . | . . . Kinetic 186 | . 186 . Thermal 115 | . 78 37 Explosive 570 | . 218 352 Electromagnetic 513 | 129 384 . Impact . | . . . Slashing . | . . . Piercing . | . . . Highest Corruption 5 | . . 5 Average Corruption 5 | . . 5 Corruption Purged . | . . . Corruption Blocked . | . . . Overload Shots . | . . . Overflow Damage 29 | . 29 . Projectiles . | . . . Explosions 29 | . 29 . Melee . | . . . Knockbacks . | . . . Impact . | . . . Kinetic . | . . . Secondary . | . . . Self-Inflicted Damage 95 | . 58 37 Shots 3 | . 2 1 Rammed . | . . . Targets Rammed . | . . . Kicked . | . . . Crushed . | . . . Highest Temperature 138 | 54 138 64 Average Temperature 34 | 16 39 37 Received Heat Transfer 150 | . 90 60 Siege Activations . | . . . Robots Corrupted 1 | . 1 . Combat Hostiles 1 | . 1 . Parts Fried 1 | 1 . . Impact Corruptions . | . . . Robots Melted . | . . . Combat Hostiles . | . . . Parts Melted . | . . . Heat Transferred 335 | . 150 185 Parts Sabotaged . | . . . Parts Stolen . | . . . Parts Stripped . | . . . Power Chain Reactions 1 | . 1 . Missiles Intercepted . | . . . Alert | -11 -10 -10 ------- Run | Jun Mat Min Peak Influence 358 | 20 358 19 Initial 13 | . 13 1 Average 82 | 7 88 4 Maximum Alert Level 1 | . 1 . Low Security (%) 83 | 100 82 100 Level 1 16 | . 17 . Level 2 . | . . . Level 3 . | . . . Level 4 . | . . . Level 5 . | . . . High Security . | . . . Max Security . | . . . Squads Dispatched 2 | . 2 . Investigation 2 | . 2 . Extermination . | . . . Reinforcement . | . . . Assault . | . . . Garrison . | . . . Intercept . | . . . Searches Triggered . | . . . Construction Impeded . | . . . Haulers Reinforced . | . . . Active Scanning Responses . | . . . Cargo Convoy Interrupts . | . . . Stealth | -11 -10 -10 --------- Run | Jun Mat Min Distress Signals . | . . . Communications Jammed . | . . . Distress Signals . | . . . Times Spotted 44 | . 24 20 Peak Tracking Total 20 | . 6 20 Tactical Retreats 1 | . 1 . Traps | -11 -10 -10 ------- Run | Jun Mat Min Traps Triggered 3 | . 3 . Indirectly . | . . . Trap Hack Attempts . | . . . Triggered . | . . . Disarmed . | . . . Reprogrammed . | . . . Reused . | . . . Traps Extracted . | . . . Installed . | . . . Triggered . | . . . Machines | -11 -10 -10 ---------- Run | Jun Mat Min Machines Disabled . | . . . Max in Single Turn . | . . . Machines Repaired . | . . . Machines Sabotaged . | . . . Overloaded Fab Kills . | . . . Hacking | -11 -10 -10 --------- Run | Jun Mat Min Machines Accessed 10 | . 10 . Terminals 7 | . 7 . Fabricators . | . . . Repair Stations 1 | . 1 . Recycling Units 2 | . 2 . Scanalyzers . | . . . Garrison Access . | . . . Total Hacks 40 | . 40 . Successful 22 | . 22 . Failed 18 | . 18 . Catastrophic 3 | . 3 . Database Lockouts . | . . . Manual 25 | . 25 . Terminals 28 | . 28 . Fabricators . | . . . Repair Stations 3 | . 3 . Recycling Units 9 | . 9 . Scanalyzers . | . . . Garrison Access . | . . . Terminal Hacks 11 | . 11 . Robot Analysis 8 | . 8 . Prototype ID Bank 1 | . 1 . Unreport Threat 1 | . 1 . Locate Traps 1 | . 1 . Fabricator Hacks . | . . . Repair Station Hacks 2 | . 2 . Scan Component 1 | . 1 . Repair 1 | . 1 . Recycling Unit Hacks 2 | . 2 . Retrieve Components 2 | . 2 . Scanalyzer . | . . . Garrison Access Hacks . | . . . Unauthorized Hacks 7 | . 7 . Terminals 3 | . 3 . Botnet 2 | . 2 . Operators 1 | . 1 . Fabricators . | . . . Repair Stations . | . . . Recycling Units 4 | . 4 . Reject 2 | . 2 . Recyclers 1 | . 1 . Mask 1 | . 1 . Scanalyzers . | . . . Garrison Access . | . . . Data Cores Recovered . | . . . Used . | . . . Hacking Detections 10 | . 10 . Full Trace Events . | . . . Feedback Events . | . . . Feedback Blocked . | . . . Robot Schematics Acquired . | . . . Robots Built . | . . . Authchips . | . . . Time . | . . . Total Robot Build Rating . | . . . Part Schematics Acquired . | . . . Parts Built . | . . . Authchips . | . . . Time . | . . . Total Part Build Rating . | . . . Parts Repaired 1 | . 1 . Time 13 | . 13 . Parts Recycled . | . . . Recycled Matter . | . . . Retrieved Matter . | . . . Retrieved Components 9 | . 9 . Parts Scanalyzed . | . . . Part Schematics Acquired . | . . . Parts Damaged . | . . . Bothacking | -11 -10 -10 ------------ Run | Jun Mat Min Used RIF Installer . | . . . Robots Hacked . | . . . Non-combat . | . . . Combat . | . . . Robot Hacks Applied . | . . . Relay Couplers Released . | . . . Fabnet Peak Effective % . | . . . Robots Rewired . | . . . Allies Hacked . | . . . Hacks Repelled . | . . . Allies | -11 -10 -10 -------- Run | Jun Mat Min Total Allies . | . . . Largest Group . | . . . Highest-Rated Group . | . . . Highest-Rated Ally . | . . . Total Orders . | . . . Ally Attacks . | . . . Total Damage . | . . . Kills . | . . . Allies Corrupted . | . . . Allies Melted . | . . . Intel | -11 -10 -10 ------- Run | Jun Mat Min Robot Analysis Total 8 | . 8 . Derelict Logs Recovered . | . . . Drone Launches . | . . . Drone Recoveries . | . . . Exploration | -11 -10 -10 ------------- Run | Jun Mat Min Turns Passed 1614 | 116 1483 15 Spaces Moved 1121 | 63 1057 1 Core 17 | 17 . . Treads . | . . . Legs 23 | 23 . . Wheels 1081 | 23 1057 1 Hover . | . . . Flight . | . . . Fastest Speed 50 | 50 80 135 Average Speed 113 | 99 114 135 Slowest Speed 190 | 190 175 135 Overloaded Moves . | . . . Propulsion Burnouts . | . . . Robots Hopped . | . . . Cave-ins Triggered . | . . . Exploration Rate (%) 35 | 3 99 4 Regions Visited 2 Branch Regions 1 Pre-discovered Areas . | . . . Known Exits Taken . | . . . Unknown Exits Taken 2 | 1 1 . Scrap Searched . | . . . Spaces Dug . | . . . Terrain Destroyed 26 | . 8 18 Melee . | . . . Projectile . | . . . AOE 26 | . 8 18 Terrain Rammed . | . . . Walls Destroyed . | . . . Machines Disabled . | . . . Actions | -11 -10 -10 --------- Run | Jun Mat Min Total 1358 | 97 1253 8 Wait 101 | 5 96 . Move 1119 | 62 1056 1 Hop . | . . . Pick Up 47 | 10 37 . Fast Attach 8 | 7 1 . Attach 9 | 2 5 2 Detach 1 | 1 . . Swap 12 | . 11 1 Drop 8 | 2 6 . Fire 53 | 8 41 4 Melee . | . . . Ram . | . . . Kick . | . . . Crush . | . . . Escape Stasis . | . . . Rewire . | . . . Trap . | . . . Miscellaneous . | . . . Route ------- -11/Junkyard -10/Materials (discovered 4 exits: [*Mat x3] / [*Min]) -10/Mines History --------- Turn | Location | Event 20 | -11/Junkyard | Discovered new exit (range 16) 117 | -11/Junkyard | Entered Materials 279 | -10/Materials | Destroyed 8 combat bots 329 | -10/Materials | Build established: Mutant 375 | -10/Materials | Discovered new exit (range 4) 549 | -10/Materials | Discovered new exit (range 15) 715 | -10/Materials | Discovered new exit (range 7) 851 | -10/Materials | Discovered new exit (range 16) 1428 | -10/Materials | Repaired Huge Storage Unit 1600 | -10/Materials | Entered Mines 1601 | -10/Mines | Assembled infested the area 1605 | -10/Mines | Core integrity fell below 50% 1606 | -10/Mines | Assisted by a Guerilla fighting off Assembled 1613 | -10/Mines | Core integrity fell below 20% 1615 | -10/Mines | Destroyed by as-45335 with Assembled F-torch Last Messages --------------- 01608_ as-20717 suffers critical hit (Destroy). 01608_ as-20717 destroyed. 01608_ Grenade Launcher destroyed. 01608_ Com. Wheel destroyed. 01608_ Heat Sink destroyed. 01609_ as-31869 destroyed. 01610_ Knocked back. 01611_ Wheel destroyed. 01611_ System corrupted by crushing effect (+5). 01611_ as-31344 suffers critical hit (Burn). 01611_ as-31344 destroyed. 01612_ Acquired 3 matter. 01612_ Com. Wheel destroyed. 01612_ Med. Laser destroyed. 01612_ as-10164 knocked back. 01614_ HV Slug penetrates as-35504. 01614_ as-35504 suffers critical hit (Destroy). 01614_ as-35504 knocked back. 01614_ HV Slug penetrates as-35504. 01614_ as-77937 suffers critical hit (Destroy). Map ----- +----------------------------------------------------+ | | | | | | | | | | | | | | | ?????????????????????????????????????????????????? | | ?????????????????????????????????????????????????? | | ?????????????????????????????????????????????????? | | ?????????????????????????????????????????????????? | | ?????????????????????????????????????????????????? | | ?????????????????????????????????????????????????? | | ?????????????????????????????????????????????????? | | ?????????????????????????????????????????????????? | | ?????????????????????????????????????????????????? | | ?????????????????????????????????????????????????? | | ?????????????????????????????????????????????????? | | ?????????????????????????????????????????????????? | | ?????????????????????????????????????????????????? | | ?????????????????????????????????????????????????? | | ?????????????????????????###???#?????????????????? | | ????????????????????????? ##? ###???????????????? | | ??????????????????????#### ;# #???????????????? | | ??????????????????????# %aa ##??????????????? | | ??????????????????????# @a% a #??????????????? | | ??????????????????????# a% % % #??????????????? | | ??????????????????????# h a a #??????????????? | | ??????????????????????# a ## % #?????????????? | | ??????????????????????# ##?? ??????????? | | ??????????????????????## ##????? ?????????? | | ???????????????????????####??????? ?????????? | | ???????????????????????????????????? ??????????? | | ?????????????????????????????????????????????????? | | ?????????????????????????????????????????????????? | | ?????????????????????????????????????????????????? | | ?????????????????????????????????????????????????? | | ?????????????????????????????????????????????????? | | ?????????????????????????????????????????????????? | | ?????????????????????????????????????????????????? | | ?????????????????????????????????????????????????? | | ?????????????????????????????????????????????????? | | ?????????????????????????????????????????????????? | | ?????????????????????????????????????????????????? | | ?????????????????????????????????????????????????? | | ?????????????????????????????????????????????????? | | ?????????????????????????????????????????????????? | | ?????????????????????????????????????????????????? | | ?????????????????????????????????????????????????? | | ?????????????????????????????????????????????????? | +----------------------------------------------------+ Best States ------------- Heat Dissipation 35 Energy Generation 10 Energy Capacity 250 Matter Stores 300 Matter Capacity 300 Sight Range 16 Terrain Scan Range 16 Terrain Scan Density 10 Evasion (%) 50 Item Schematics ----------------- None Robot Schematics ------------------ None Fabricated ------------ Nothing Alien Tech Used ----------------- None Achievements -------------- None Challenges ------------ None Game ------ Seed CoolantGatlingDatajack Manual? 0 Play Time 00:12:14 Cumulative 522.0 hours Start 2023.03.04 @ 16:29:10 End 2023.03.04 @ 16:40:56 Sessions 1 Manual Loads 0 Difficulty Rogue Special Mode None Game No. 372 Rogue 372 Adventurer 0 Explorer 0 Win Type - Total 1 Types 1/0/0/0/0/0/0/0/0 Lore% 69 Gallery% 77 Achievement% 58 Wizard Run 0 Options --------- ASCII 0 Keyboard 0 Movement Mouse Keybinds 0 Fullscreen 1 Font 16/SmallcapsGlow Map View 75x55 Tactical HUD 1 Map Filters NONE Filters NONE Steam 1 RUN: 8c05769c-0cdd-4480-a56b-029881ba5702